Cogmind - Beta 16 @@@ ROGUE MODE // 2026.01.08 @ 04:45:11 Player: Legato Result: Destroyed by G-73 Enforcer with Phase Gun Performance ------------- Evolutions (8) 4000 Regions Visited (11) 2200 Robots Destroyed (57) 285 Value Destroyed (1437) 1437 Prototype IDs (38) 760 Alien Tech Used (0) 0 Bonus (421) 421 TOTAL SCORE: 9103 Bonus ------- Follower Combat Kills 121 Aligned with FarCom 300 Cogmind --------- Core Integrity 0/1450 Matter 138/300 Energy 99/100 System Corruption 7% Temperature Cool (0) Movement Core (50) Location -2/Research Parts ------- > --- POWER (2) -------- (None) > --- PROPULSION (9) --- (None) > --- UTILITY (10) ----- (None) > --- WEAPON (2) ------- (None) > --- INVENTORY (5) ---- Light Quantum Reactor Improved Matter Compressor (0) Hardened Medium Armor Plating Peak State ------------ > --- POWER ------------ Micro Nuclear Core Light Particle Reactor > --- PROPULSION ------- Improved Flight Unit Improved Flight Unit Improved Flight Unit Cooled Cesium-ion Thruster Flying Fortress v7 > --- UTILITY ---------- Large Storage Unit Improved Signal Interpreter Advanced Transmission Jammer Cloaking Device Cloaking Device Hacking Suite Improved Hacking Suite Improved System Shield Advanced System Shield > --- WEAPON ----------- Flail Powered Hammer > --- INVENTORY -------- Micro Nuclear Core Particle Reactor Xenon Bombardment Thruster Improved Terrain Scanner Transport Network Coupler Advanced Actuator Array Transmission Jammer ECM Suite Advanced ECM Suite Improved Utility Shielding Improved Utility Shielding Hardened Medium Armor Plating Improved Focal Shield Advanced Shield Generator Improved Grenade Launcher [Rating: 111] Favorites ----------- Power Micro Nuclear Core Engine Ion Engine Power Core Micro Nuclear Core Reactor Light Particle Reactor Propulsion Light Treads Treads Light Treads Leg Aluminum Leg Flight Unit Improved Flight Unit Utility Large Storage Unit Device Cloaking Device Storage Large Storage Unit Processor Improved Signal Interpreter Hackware Hacking Suite Protection Hardened Medium Armor Plating Weapon Beam Cannon Energy Gun Heavy EM Shotgun Energy Cannon Beam Cannon Ballistic Gun Assault Rifle Ballistic Cannon Advanced Assault Cannon Launcher Grenade Launcher Special Weapon Mining Laser Impact Weapon Powered Hammer Slashing Weapon Chainsword Build | -11 -10 -10 -10 -9 -8 -7 -6 -5 -4 -3 -2 ------- Run | Yrd Mat Min Exi Min Mat Fac Fac Fac Fac Res Res Slots Evolved 16 | . . . . . 4 2 2 2 2 2 2 Power 1 | . . . . . . . . 1 . . . Propulsion 7 | . . . . . 2 . 1 1 1 1 1 Utility 8 | . . . . . 2 2 1 . 1 1 1 Weapon . | . . . . . . . . . . . . Parts Attached 79 | 7 12 2 . . 14 8 10 8 2 8 8 Power 11 | 1 1 . . . 3 . . 2 . 3 1 Engine 3 | 1 1 . . . 1 . . . . . . Core 5 | . . . . . 2 . . 2 . 1 . Reactor 3 | . . . . . . . . . . 2 1 Propulsion 15 | 2 4 . . . 2 . 5 . . . 2 Treads 4 | . 4 . . . . . . . . . . Leg 2 | 2 . . . . . . . . . . . Wheel . | . . . . . . . . . . . . Hover . | . . . . . . . . . . . . Flight 9 | . . . . . 2 . 5 . . . 2 Utility 34 | 2 3 1 . . 4 4 4 6 2 4 4 Device 16 | 1 1 1 . . 2 . 3 3 1 2 2 Storage 4 | 1 2 . . . . . . . . . 1 Processor 5 | . . . . . 1 2 . 1 1 . . Hackware 5 | . . . . . 1 1 . 2 . 1 . Protection 4 | . . . . . . 1 1 . . 1 1 Artifact . | . . . . . . . . . . . . Weapon 19 | 2 4 1 . . 5 4 1 . . 1 1 Energy Gun 2 | . . . . . 1 1 . . . . . Energy Cannon 1 | . 1 . . . . . . . . . . Ballistic Gun 5 | 2 . 1 . . 2 . . . . . . Ballistic Cannon 1 | . . . . . 1 . . . . . . Launcher 5 | . 1 . . . 1 . 1 . . 1 1 Special Weapon 2 | . 2 . . . . . . . . . . Impact Weapon 2 | . . . . . . 2 . . . . . Slashing Weapon 1 | . . . . . . 1 . . . . . Piercing Weapon . | . . . . . . . . . . . . Special Melee Weapon . | . . . . . . . . . . . . Unidentified Prototypes 8 | . . . . . 3 1 1 1 . . 2 Parts Lost 24 | . 2 . . . . . 1 1 . 8 12 Power 5 | . 1 . . . . . . 1 . 2 1 Propulsion 8 | . . . . . . . . . . 4 4 Utility 9 | . . . . . . . 1 . . 2 6 Weapon 2 | . 1 . . . . . . . . . 1 Highest Loss Streak 5 | . 1 . . . . . 1 1 . 4 5 To Critical Strikes . | . . . . . . . . . . . . Average Backups 11 | 4 9 12 12 11 12 14 14 13 14 13 3 Power 1 | . 1 1 1 1 1 3 3 1 1 1 1 Propulsion 3 | 2 3 4 4 5 3 4 5 3 2 . . Utility 5 | . 2 6 6 4 5 4 4 6 10 10 1 Weapon 1 | . 2 1 1 1 2 2 2 1 1 . . Tool/Special . | . . . . . . . . . . . . Unused Backups 23 | . 2 . 4 . 5 5 2 1 . 2 2 Power 2 | . . . . . 1 . . . . . 1 Propulsion 6 | . 1 . . . 4 . . 1 . . . Utility 13 | . . . 4 . . 4 2 . . 2 1 Weapon 2 | . 1 . . . . 1 . . . . . Tool/Special . | . . . . . . . . . . . . Average Slot Usage (%) 84 | . 100 100 100 95 69 75 79 81 83 81 25 Engine 6 | . 14 14 14 14 3 . . . . . . Core 3 | . . . . . 5 7 6 11 10 4 2 Treads 10 | . 21 28 28 28 . . . . . . . Leg 1 | . 6 . . . . . . . . . . Flight 7 | . . . . . 8 7 13 16 21 21 6 Device 13 | . 14 14 14 9 8 12 21 19 18 13 . Storage 8 | . 14 14 14 14 9 7 6 5 5 3 . Processor 1 | . . . . . 8 3 . . 1 3 . Hackware 7 | . . . . . 7 13 13 12 15 18 13 Protection 1 | . . . . . . 6 2 . . . 1 Energy Cannon 6 | . 13 14 14 14 6 . . . . . . Ballistic Gun 5 | . 7 14 14 14 9 . . . . . . Impact Weapon 4 | . . . . . . 9 12 10 10 8 . Peak Build Rating 111 | 7 8 9 11 11 55 62 75 88 100 111 57 Average Rating 43 | 5 7 8 10 10 48 60 71 83 96 101 27 On Entrance 37 | . 7 8 9 11 10 55 60 74 88 94 29 Avg Prop Armor Cover (%) . | . . . . . . . . . . . . Naked Turns 12 | . . . . . . . . . . . 12 Heaviest Build 57 | 11 30 31 31 31 38 46 44 47 48 57 15 Greatest Support 74 | 20 40 40 40 40 50 50 59 64 66 74 24 Greatest Overweight (x) 10 | 2 1 . . . 10 . . . . 3 . Average Overweight (x) . | . . . . . . . . . . . . Largest Inventory Capacity 15 | 8 15 15 15 15 15 15 15 15 15 15 5 Average Capacity 13 | 7 10 15 15 15 15 15 15 15 15 14 5 Most Carried 15 | 8 11 14 15 15 15 15 15 15 15 15 5 Average Carried 12 | 4 9 12 14 14 12 14 14 13 14 13 3 Final Capacity 15 | 8 15 15 15 15 15 15 15 15 15 5 5 Final Carried 15 | 8 11 14 15 14 15 15 15 15 15 3 3 Class Distribution -------------------- 51% | Mutant 19% | Hacker-Mutant 14% | Hacker-Sprinter 13% | Hacker-Ninja Dominant Class ---------------- Mutant | -10/Materials Mutant | -10/Mines Mutant | -10/Exiles Skirmisher | -9/Mines Mutant | -8/Materials Hacker-Mutant | -7/Factory Hacker-Ninja | -6/Factory Hacker-Ninja | -5/Factory Hacker-Sprinter | -4/Factory Hacker-Sprinter | -3/Research Hacker-Mutant | -2/Research Resources | -11 -10 -10 -10 -9 -8 -7 -6 -5 -4 -3 -2 ----------- Run | Yrd Mat Min Exi Min Mat Fac Fac Fac Fac Res Res Matter Collected 1505 | 290 350 82 . . 172 160 160 57 117 64 53 Remotely . | . . . . . . . . . . . . Salvage Created 1879 | 43 304 7 . 25 187 70 703 57 150 240 93 Parts 89 | 5 17 3 . 1 10 5 16 2 4 18 8 Haulers Intercepted 9 | . 1 . . . 1 1 4 . 1 1 . Recyclers Shooed . | . . . . . . . . . . . . Parts Field Recycled . | . . . . . . . . . . . . Retrieved Matter . | . . . . . . . . . . . . Parts Self-Destructed . | . . . . . . . . . . . . Prevented . | . . . . . . . . . . . . Parts Restored . | . . . . . . . . . . . . Kills | -11 -10 -10 -10 -9 -8 -7 -6 -5 -4 -3 -2 ------- Run | Yrd Mat Min Exi Min Mat Fac Fac Fac Fac Res Res Combat Hostiles Destroyed 20 | . 8 2 . . 3 . 2 . . 1 4 Melee 2 | . . . . . . . 1 . . 1 . Guns 3 | . . . . . 3 . . . . . . Cannons 4 | . 4 . . . . . . . . . . AOE 10 | . 4 2 . . . . . . . . 4 Classes Destroyed 11 | 2 5 . . . 1 . 2 . . 1 . Worker 6 | 1 1 . . 1 . 1 1 . . . 1 Builder 12 | . 1 . . . . . 3 . . 8 . Tunneler 1 | 1 . . . . . . . . . . . Hauler 9 | . 1 . . . 1 1 4 . 1 1 . Recycler 1 | . . . . . . . 1 . . . . Operator 1 | . . . . . . . . . . 1 . Watcher 7 | . 3 . . . . . 1 2 1 . . Swarmer 9 | . 3 2 . . . . . . . . 4 Grunt 6 | . 5 . . . 1 . . . . . . Sentry 3 | . . . . . 2 . 1 . . . . Programmer 2 | . . . . . . . 1 . . 1 . Best Kill Streak 5 | 1 5 2 . 1 4 1 5 1 1 5 3 Combat Bots Only 3 | . 3 2 . . 2 . 1 . . 1 2 Max Kills in Single Turn 3 | 1 3 2 . 1 1 1 1 1 1 3 3 Gunslinging . | . . . . . . . . . . . . Exploded 2 | . 2 2 . . . . . . . . 2 Melee 1 | . . . . . . . 1 . . 1 . Uniques/NPCs Destroyed . | . . . . . . . . . . . . Combat | -11 -10 -10 -10 -9 -8 -7 -6 -5 -4 -3 -2 -------- Run | Yrd Mat Min Exi Min Mat Fac Fac Fac Fac Res Res Hostile Shots Fired 396 | . 49 3 . . 4 1 19 1 . 155 164 Missed 184 | . 13 . . . 3 1 10 . . 70 87 Hits 212 | . 36 3 . . 1 . 9 1 . 85 77 Projectile 212 | . 36 3 . . 1 . 9 1 . 85 77 Critical Strikes 7 | . . . . . . . . . . 4 3 Actively Blocked 2 | . . . . . . . . . . . 2 Part Disruptions 2 | . . . . . . . . . . 2 . Damage Taken 5188 | . 640 37 . . 14 . 178 209 . 2016 2094 Core 1978 | . 125 . . . . . 51 . . 351 1451 Absorbed by Shields 5 | . . . . . . . . 5 . . . Redirected to Shielding 245 | . . . . . . . . . . 101 144 Regen/Repaired (Parts) 182 | . . . . . 38 . . 144 . . . Core Remaining (%) 89 | 100 . . . 50 100 100 94 100 100 73 . Volleys Fired 80 | 10 51 2 . . 8 4 . . . 3 2 Largest 2 | 2 2 2 . . 2 2 . . . 1 1 Hottest 100 | 40 100 80 . . 85 65 . . . 49 55 Shots Fired 134 | 20 84 4 . . 16 5 . . . 3 2 Gun 55 | 20 24 2 . . 8 1 . . . . . Cannon 45 | . 34 2 . . 8 1 . . . . . Launcher 22 | . 14 . . . . 3 . . . 3 2 Special 12 | . 12 . . . . . . . . . . Kinetic 56 | 20 24 2 . . 8 2 . . . . . Thermal 56 | . 46 2 . . 8 . . . . . . Explosive 22 | . 14 . . . . 3 . . . 3 2 Electromagnetic . | . . . . . . . . . . . . Robot Hit Streak 12 | 6 8 1 . . 12 1 . . . 3 5 Robot Miss Streak 4 | 3 4 2 . . 1 2 . . . . . Penetration Max . | . . . . . . . . . . . . Secondary Targets . | . . . . . . . . . . . . Shots Hit Robots 121 | 14 43 1 . . 14 2 20 2 2 21 2 Core Hits 63 | 5 23 2 . 1 6 2 2 1 1 10 10 Critical Kills 3 | . . . . . . . 2 . . 1 . Critical Parts Destroyed 11 | 1 . . . . . . 5 . 1 4 . Critical Strikes 14 | 1 . . . . . . 7 . 1 5 . Destroy 1 | 1 . . . . . . . . . . . Smash 13 | . . . . . . . 7 . 1 5 . Melee Attacks 221 | . . . . . . 46 65 14 7 89 . Impact 215 | . . . . . . 40 65 14 7 89 . Slashing 6 | . . . . . . 6 . . . . . Piercing . | . . . . . . . . . . . . Sneak Attacks 16 | . . . . . . 1 10 . 1 4 . Combat Hostiles . | . . . . . . . . . . . . Follow-up Attacks 5 | . . . . . . . 3 . . 2 . Damage Inflicted 6068 | 102 1103 127 . 10 317 162 1450 125 157 1695 820 Guns 384 | 102 105 . . . 177 . . . . . . Cannons 553 | . 367 18 . . 140 28 . . . . . Explosions 2031 | . 611 109 . . . . . . . 536 775 Melee 3025 | . . . . . . 134 1450 125 157 1159 . Ramming 75 | . 20 . . 10 . . . . . . 45 Kinetic 412 | 102 105 . . . 177 28 . . . . . Thermal 634 | . 367 127 . . 140 . . . . . . Explosive 1922 | . 611 . . . . . . . . 536 775 Electromagnetic . | . . . . . . . . . . . . Impact 3025 | . . . . . . 134 1450 125 157 1159 . Slashing . | . . . . . . . . . . . . Piercing . | . . . . . . . . . . . . Highest Corruption 19 | . . . . . . . 1 . . 19 7 Average Corruption 6 | . . . . . . . 1 . . 9 6 Corruption Purged . | . . . . . . . . . . . . Corruption Blocked . | . . . . . . . . . . . . Effects 9 | . . . . . . . . . . 9 . Message Errors 1 | . . . . . . . . . . 1 . Matter Fused 1 | . . . . . . . . . . 1 . Heat Flow Errors 2 | . . . . . . . . . . 2 . Parts Fused 1 | . . . . . . . . . . 1 . Data Loss (major) 2 | . . . . . . . . . . 2 . Misdirections 2 | . . . . . . . . . . 2 . Overload Shots . | . . . . . . . . . . . . Overflow Damage 1589 | . 17 1 . . . . 776 109 56 570 60 Projectiles . | . . . . . . . . . . . . Explosions 142 | . 17 1 . . . . . 62 . 2 60 Melee 1447 | . . . . . . . 776 47 56 568 . Knockbacks 14 | . . . . . . . 7 1 . 6 . Impact 13 | . . . . . . . 6 1 . 6 . Kinetic . | . . . . . . . . . . . . Secondary 1 | . . . . . . . 1 . . . . Self-Inflicted Damage 588 | . 163 . . . . . . 194 . 131 100 Shots 14 | . 7 . . . . . . 2 . 3 2 Rammed 19 | . 4 . . 1 . . . . . . 14 Targets Rammed 19 | . 4 . . 1 . . . . . . 14 Kicked . | . . . . . . . . . . . . Crushed . | . . . . . . . . . . . . Highest Temperature 267 | . 267 60 . . 118 3 . 6 . 261 . Average Temperature 61 | . 77 30 . . 52 2 . 4 . 23 . Received Heat Transfer 417 | . 153 15 . . . . 6 6 . 66 171 Siege Activations . | . . . . . . . . . . . . Martial Activations . | . . . . . . . . . . . . Shielding Activations . | . . . . . . . . . . . . Robots Disrupted . | . . . . . . . . . . . . Combat Hostiles . | . . . . . . . . . . . . Robots Corrupted 12 | . . . . . . . 8 1 1 2 . Combat Hostiles 1 | . . . . . . . 1 . . . . Parts Fried 21 | . . . . . . . 9 . 1 11 . Impact Corruptions 44 | . . . . . . . 23 1 1 19 . Robots Melted . | . . . . . . . . . . . . Combat Hostiles . | . . . . . . . . . . . . Parts Melted . | . . . . . . . . . . . . Heat Transferred 1310 | . 777 237 . . 296 . . . . . . Parts Sabotaged . | . . . . . . . . . . . . Parts Stolen . | . . . . . . . . . . . . Parts Stripped . | . . . . . . . . . . . . Power Chain Reactions . | . . . . . . . . . . . . Alert | -11 -10 -10 -10 -9 -8 -7 -6 -5 -4 -3 -2 ------- Run | Yrd Mat Min Exi Min Mat Fac Fac Fac Fac Res Res Maximum Alert Level 2 | . . 1 . . . . . . . . 2 Low Security (%) 91 | 100 100 54 . 100 100 100 100 100 100 100 45 Level 1 6 | . . 45 . . . . . . . . 14 Level 2 2 | . . . . . . . . . . . 39 Level 3 . | . . . . . . . . . . . . Level 4 . | . . . . . . . . . . . . Level 5 . | . . . . . . . . . . . . High Security . | . . . . . . . . . . . . Max Security . | . . . . . . . . . . . . Peak Influence 619 | 5 195 299 . 81 67 25 49 76 15 81 619 Initial 46 | . 3 46 . . 21 . . 6 . . 39 Average 60 | . 60 182 . 34 16 2 9 34 2 12 271 Influence Increases 2889 | 10 405 356 . 86 130 118 257 188 39 381 919 Destroy 0b10 Robot/C 540 | . 160 100 . 60 80 . 40 . . 20 80 Destroy 0b10 Robot/NC 190 | 10 30 . . 5 10 10 50 10 10 50 5 Destroy Leader 152 | . 38 20 . 10 32 2 30 4 4 12 . Allied During Kill 33 | . . 19 . 11 3 . . . . . . Successful Hack 183 | . 22 . . . 5 4 37 62 4 49 . Disable Machine 465 | . 60 180 . . . 30 75 45 15 45 15 Destroy Structure 486 | . 80 22 . . . 42 25 52 6 130 129 Partial Spotted 45 | . . . . . . 30 . 15 . . . Lose Combat Pursuer 795 | . 15 15 . . . . . . . 75 690 Influence Decreases 2300 | 5 289 393 84 30 186 118 243 202 37 313 400 Entered New Map 237 | . 2 75 84 . 35 . . 8 . 2 31 Time Decay 1709 | 5 280 318 . 30 150 118 187 184 37 251 149 Search Patrol Dispatched 100 | . . . . . . . . . . . 100 Lost Part 196 | . 7 . . . . . 7 10 . 52 120 Lost Ally 1 | . . . . . 1 . . . . . . Purge Threat 57 | . . . . . . . 49 . . 8 . Squads Dispatched 12 | . 1 . . . . 2 4 . . 3 2 Investigation . | . . . . . . . . . . . . Extermination 7 | . . . . . . 2 2 . . 2 1 Reinforcement 5 | . 1 . . . . . 2 . . 1 1 Assault . | . . . . . . . . . . . . Garrison . | . . . . . . . . . . . . Intercept . | . . . . . . . . . . . . Searches Triggered 1 | . . . . . . . . . . . 1 Construction Impeded 1 | . . . . . . . . . . 1 . Haulers Reinforced 1 | . . . . . . . 1 . . . . Active Scanning Responses . | . . . . . . . . . . . . Cargo Convoy Interrupts 1 | . . . . . . . . . . 1 . Stealth | -11 -10 -10 -10 -9 -8 -7 -6 -5 -4 -3 -2 --------- Run | Yrd Mat Min Exi Min Mat Fac Fac Fac Fac Res Res Distress Signals 7 | . 2 . . . . . . . . 2 3 Communications Jammed 4 | . . . . . . . . . 1 3 . Distress Signals 3 | . . . . . . . . . . 3 . Times Spotted 137 | . 16 5 . 2 4 3 5 3 1 32 66 Peak Tracking Total 19 | . 3 3 . 4 3 3 3 1 1 9 19 Tactical Retreats 26 | . 1 1 . . 2 . 1 1 . 10 10 ECM-based Alert Blocks 26 | . . . . . 3 . 3 1 . 19 . Traps | -11 -10 -10 -10 -9 -8 -7 -6 -5 -4 -3 -2 ------- Run | Yrd Mat Min Exi Min Mat Fac Fac Fac Fac Res Res Traps Triggered 6 | . 3 . . . . . 2 . . 1 . Indirectly . | . . . . . . . . . . . . Trap Hack Attempts . | . . . . . . . . . . . . Triggered . | . . . . . . . . . . . . Disarmed 4 | . 4 . . . . . . . . . . Reprogrammed . | . . . . . . . . . . . . Reused . | . . . . . . . . . . . . Traps Extracted . | . . . . . . . . . . . . Installed . | . . . . . . . . . . . . Triggered . | . . . . . . . . . . . . Machines | -11 -10 -10 -10 -9 -8 -7 -6 -5 -4 -3 -2 ---------- Run | Yrd Mat Min Exi Min Mat Fac Fac Fac Fac Res Res Machines Disabled 31 | . 4 12 . . . 2 5 3 1 3 1 Max in Single Turn 12 | . 2 12 . . . 1 1 2 1 1 1 Garrison Access 2 | . . . . . . . . 1 1 . . Machines Repaired . | . . . . . . . . . . . . Machines Dismantled . | . . . . . . . . . . . . Machines Sabotaged . | . . . . . . . . . . . . Overloaded Fab Kills . | . . . . . . . . . . . . Hacking | -11 -10 -10 -10 -9 -8 -7 -6 -5 -4 -3 -2 --------- Run | Yrd Mat Min Exi Min Mat Fac Fac Fac Fac Res Res Machines Accessed 60 | . 9 . 2 . 5 6 12 12 2 11 1 Terminals 41 | . 7 . . . 3 1 11 7 1 10 1 Fabricators 1 | . . . . . . . . . . 1 . Repair Stations 3 | . . . . . 1 1 . 1 . . . Recycling Units 6 | . 2 . . . . 1 . 3 . . . Scanalyzers 4 | . . . . . 1 2 1 . . . . Garrison Access 3 | . . . . . . 1 . 1 1 . . Total Hacks 162 | . 26 . 2 . 17 15 29 24 6 40 3 Successful 81 | . 14 . 2 . 10 5 11 17 3 19 . Failed 79 | . 12 . . . 7 10 17 7 3 20 3 Catastrophic 20 | . 2 . . . . 1 2 5 1 8 1 Database Lockouts 2 | . . . . . . . 1 . . 1 . Manual 55 | . 16 . 1 . 8 2 11 3 1 13 . Terminals 125 | . 22 . . . 12 3 27 14 5 39 3 Fabricators 1 | . . . . . . . . . . 1 . Repair Stations 9 | . . . . . 2 2 . 5 . . . Recycling Units 9 | . 4 . . . . 1 . 4 . . . Scanalyzers 11 | . . . . . 3 6 2 . . . . Garrison Access 5 | . . . . . . 3 . 1 1 . . Terminal Hacks 54 | . 8 . 2 . 3 1 9 11 2 18 . Record 11 | . . . 1 . . . . 2 2 6 . Robot Analysis 4 | . 1 . . . . . 2 . . 1 . Prototype ID Bank 4 | . 1 . . . 2 . . 1 . . . Open DSF 7 | . . . . . . 1 1 3 . 2 . Level Access Points 3 | . . . . . . . 1 1 . 1 . Emergency Access Points 2 | . 1 . . . . . 1 . . . . Terminal Index 1 | . . . . . . . . . . 1 . Fabricator Index 1 | . . . . . . . . . . 1 . Recycling Unit Index 1 | . . . . . . . . . . 1 . Scanalyzer Index 1 | . . . . . 1 . . . . . . Alert Level 1 | . . . . . . . . 1 . . . Unreport Threat 2 | . . . . . . . 1 . . 1 . Locate Traps 2 | . 2 . . . . . . . . . . Disarm Traps 1 | . 1 . . . . . . . . . . Recall Extermination 1 | . . . . . . . 1 . . . . Recall Reinforcements 2 | . 1 . . . . . . . . 1 . Hauler Manifests 2 | . 1 . . . . . . 1 . . . Registered Prototypes 1 | . . . . . . . . 1 . . . Zone Layout 6 | . . . . . . . 2 1 . 3 . Proto ID Catalog 1 | . . . 1 . . . . . . . . Fabricator Hacks . | . . . . . . . . . . . . Repair Station Hacks 5 | . . . . . 2 1 . 2 . . . Scan Component 2 | . . . . . 1 . . 1 . . . Repair 2 | . . . . . 1 . . 1 . . . Refit 1 | . . . . . . 1 . . . . . Recycling Unit Hacks 7 | . 3 . . . . 1 . 3 . . . Report Inventory 5 | . 2 . . . . 1 . 2 . . . Retrieve Components 2 | . 1 . . . . . . 1 . . . Scanalyzer 6 | . . . . . 3 2 1 . . . . Insert Component 1 | . . . . . 1 . . . . . . Analyze 1 | . . . . . 1 . . . . . . Retrieve Study 4 | . . . . . 1 2 1 . . . . Garrison Access Hacks 2 | . . . . . . . . 1 1 . . Seal Access 2 | . . . . . . . . 1 1 . . Unauthorized Hacks 7 | . 3 . . . 2 . 1 . . 1 . Terminals 6 | . 2 . . . 2 . 1 . . 1 . Botnet 6 | . 2 . . . 2 . 1 . . 1 . Fabricators . | . . . . . . . . . . . . Repair Stations . | . . . . . . . . . . . . Recycling Units 1 | . 1 . . . . . . . . . . Monitor 1 | . 1 . . . . . . . . . . Scanalyzers . | . . . . . . . . . . . . Garrison Access . | . . . . . . . . . . . . Data Cores Recovered 1 | . . . . . 1 . . . . . . Used . | . . . . . . . . . . . . Hacking Detections 44 | . 7 . . . 4 3 11 8 1 9 1 Full Trace Events . | . . . . . . . . . . . . Feedback Events . | . . . . . . . . . . . . Feedback Blocked . | . . . . . . . . . . . . Robot Schematics Acquired . | . . . . . . . . . . . . Robots Built . | . . . . . . . . . . . . Authchips . | . . . . . . . . . . . . Time . | . . . . . . . . . . . . Total Robot Build Rating . | . . . . . . . . . . . . Part Schematics Acquired 1 | . . . . . 1 . . . . . . Parts Built . | . . . . . . . . . . . . Authchips . | . . . . . . . . . . . . Time . | . . . . . . . . . . . . Total Part Build Rating . | . . . . . . . . . . . . Part Studies Acquired 3 | . . . . . . 2 1 . . . . Parts Repaired 2 | . . . . . 1 . . 1 . . . Time 48 | . . . . . 26 . . 22 . . . Parts Recycled . | . . . . . . . . . . . . Recycled Matter . | . . . . . . . . . . . . Retrieved Matter . | . . . . . . . . . . . . Retrieved Components 12 | . 9 . . . . . . 3 . . . Parts Scanalyzed 1 | . . . . . 1 . . . . . . Part Schematics Acquired 1 | . . . . . 1 . . . . . . Parts Damaged . | . . . . . . . . . . . . Bothacking | -11 -10 -10 -10 -9 -8 -7 -6 -5 -4 -3 -2 ------------ Run | Yrd Mat Min Exi Min Mat Fac Fac Fac Fac Res Res Used RIF Installer . | . . . . . . . . . . . . Robots Hacked . | . . . . . . . . . . . . Non-combat . | . . . . . . . . . . . . Combat . | . . . . . . . . . . . . Robot Hacks Applied . | . . . . . . . . . . . . Relay Couplers Released . | . . . . . . . . . . . . Fabnet Peak Effective % . | . . . . . . . . . . . . Robots Rewired . | . . . . . . . . . . . . Allies Hacked . | . . . . . . . . . . . . Hacks Repelled . | . . . . . . . . . . . . Allies | -11 -10 -10 -10 -9 -8 -7 -6 -5 -4 -3 -2 -------- Run | Yrd Mat Min Exi Min Mat Fac Fac Fac Fac Res Res Total Allies 3 | . . 3 . . . . . . . . . Largest Group 3 | . . 3 3 3 3 . . . . . . Highest-Rated Group 40 | . . 40 40 40 40 . . . . . . Highest-Rated Ally 16 | . . 16 16 16 16 . . . . . . Total Orders . | . . . . . . . . . . . . Ally Attacks 29 | . . 10 . 7 12 . . . . . . Total Damage 264 | . . 76 . 76 112 . . . . . . Kills 8 | . . 3 . 3 2 . . . . . . Allies Corrupted . | . . . . . . . . . . . . Allies Melted . | . . . . . . . . . . . . Intel | -11 -10 -10 -10 -9 -8 -7 -6 -5 -4 -3 -2 ------- Run | Yrd Mat Min Exi Min Mat Fac Fac Fac Fac Res Res Active Infowar (turns) 5937 | 22 1371 712 528 80 497 641 720 388 169 809 . Optics 288 | . . . . . . 197 91 . . . . Sensors 2518 | . 1198 712 528 80 . . . . . . . Terrain 877 | . . . . . . . 661 216 . . . Seismic 195 | 22 173 . . . . . . . . . . T.N.C. 50 | . . . . . . 50 . . . . . Cloaking 1650 | . . . . . . . 375 379 169 727 . Jamming 1150 | . . . . . . . 232 325 26 567 . ECM 1652 | . . . . . 497 641 149 131 35 199 . Robot Analysis Total 4 | . 1 . . . . . 2 . . 1 . Derelict Logs Recovered 1 | . . 1 . . . . . . . . . Drone Launches . | . . . . . . . . . . . . Drone Recoveries . | . . . . . . . . . . . . Exploration | -11 -10 -10 -10 -9 -8 -7 -6 -5 -4 -3 -2 ------------- Run | Yrd Mat Min Exi Min Mat Fac Fac Fac Fac Res Res Turns Passed 6512 | 117 1371 712 528 113 501 641 720 388 169 876 376 Spaces Moved 7884 | 58 729 439 329 69 658 915 1195 754 456 1521 761 Core 190 | 7 . . . . 1 . . . . . 182 Treads 1343 | . 506 439 329 69 . . . . . . . Legs 274 | 51 223 . . . . . . . . . . Wheels . | . . . . . . . . . . . . Hover . | . . . . . . . . . . . . Flight 6077 | . . . . . 657 915 1195 754 456 1521 579 Fastest Speed 25 | 50 120 160 160 160 50 50 34 31 32 25 33 Average Speed 63 | 116 147 160 160 160 50 50 41 38 32 30 39 Slowest Speed 550 | 150 190 160 160 160 550 50 50 42 32 244 50 Overloaded Moves 21 | . . . . . . . 8 12 . 1 . Propulsion Burnouts . | . . . . . . . . . . . . Robots Hopped 46 | . . . . . 6 8 13 3 . 5 11 Potential Cave-ins 4 | . . . . . . 2 . . . 2 . Cave-ins Triggered . | . . . . . . . . . . . . Exploration Rate (%) 39 | 5 86 95 76 24 31 22 36 23 11 40 27 Regions Visited 11 Branch Regions 3 Pre-discovered Areas 2 | . . 1 1 . . . . . . . . Known Exits Taken 4 | . . . . . . . 1 1 1 1 . Unknown Exits Taken 7 | 1 1 1 1 1 1 1 . . . . . Scrap Searched 3 | . . 2 . 1 . . . . . . . Spaces Dug 125 | . 15 . . . . 37 23 7 2 41 . Terrain Destroyed 323 | . 84 22 . . . 49 23 29 2 64 50 Melee 106 | . . . . . . 33 23 7 2 41 . Projectile 10 | . 10 . . . . . . . . . . AOE 207 | . 74 22 . . . 16 . 22 . 23 50 Terrain Rammed . | . . . . . . . . . . . . Walls Destroyed . | . . . . . . . . . . . . Machines Disabled . | . . . . . . . . . . . . Actions | -11 -10 -10 -10 -9 -8 -7 -6 -5 -4 -3 -2 --------- Run | Yrd Mat Min Exi Min Mat Fac Fac Fac Fac Res Res Total 8892 | 88 918 444 334 72 805 1018 1318 824 466 1785 820 Wait 522 | 5 97 . . 1 97 40 59 34 . 156 33 Move 7785 | 57 728 438 328 68 645 898 1169 747 455 1511 741 Hop 42 | . . . . . 6 8 12 3 . 4 9 Pick Up 67 | 9 9 2 2 . 17 8 6 7 1 4 2 Fast Attach 26 | 6 . . . . 3 4 1 4 1 . 7 Attach 32 | 1 3 . . . 4 2 7 3 1 7 4 Detach 10 | . . . . . 1 . 4 . . 2 3 Swap 62 | . 17 2 . . 9 6 7 6 2 12 1 Drop 65 | . 9 . 4 2 15 10 3 7 . 11 4 Fire 80 | 10 51 2 . . 8 4 . . . 3 2 Melee 182 | . . . . . . 38 50 13 6 75 . Ram 14 | . . . . . . . . . . . 14 Kick . | . . . . . . . . . . . . Crush 5 | . 4 . . 1 . . . . . . . Escape Stasis . | . . . . . . . . . . . . Rewire . | . . . . . . . . . . . . Trap . | . . . . . . . . . . . . Miscellaneous . | . . . . . . . . . . . . Route ------- -11/Scrapyard -10/Materials (discovered 4 exits: [*Mat x3] / [*Min]) -10/Mines (discovered 3 exits: [*Mat x2] / *Exi) -10/Exiles (discovered 2 exits: [*Min x2]) -9/Mines -8/Materials -7/Factory (discovered 2 exits: *Fac / DSF) -6/Factory (discovered 5 exits: *Fac x4 / [*Low]) -5/Factory (discovered 5 exits: *Fac x4 / *Upp) -4/Factory -3/Research (discovered 3 exits: *Res x3) -2/Research History --------- Turn | Location | Event 15 | -11/Scrapyard | Discovered new exit (range 15) 118 | -11/Scrapyard | Entered Materials 157 | -10/Materials | Discovered new exit (range 14) 312 | -10/Materials | Build established: Mutant 614 | -10/Materials | Discovered new exit (range 10) 962 | -10/Materials | Discovered new exit (range 9) 1370 | -10/Materials | Discovered new exit (range 5) 1489 | -10/Materials | Entered Mines 1496 | -10/Mines | Assisted by bots powering up and referring to "LRC-V3" 1718 | -10/Mines | Discovered new exit (range 14) 1942 | -10/Mines | Learned location of Storage (-7) 1949 | -10/Mines | Found a damaged Exp. Sensor Array with a note attached 1957 | -10/Mines | Found Prototype Device 1983 | -10/Mines | Discovered new exit (range 15) 2193 | -10/Mines | Deemed a non-threat by the Exiles lab entrance 2194 | -10/Mines | Discovered new exit (range 5) 2201 | -10/Mines | Entered Exiles 2201 | -10/Exiles | Accompanied by 3 allies 2225 | -10/Exiles | Discovered new exit (range 15) 2241 | -10/Exiles | Met 8R-AWN 2269 | -10/Exiles | Met EX-HEX 2318 | -10/Exiles | Met EX-BIN 2341 | -10/Exiles | Aligned with FarCom system 2342 | -10/Exiles | Given EX-Vault access code 2379 | -10/Exiles | Opened EX-Vault 2401 | -10/Exiles | Found Flying Fortress v7 2436 | -10/Exiles | Warned to stay clear of 0b10 Research branches 2478 | -10/Exiles | Met EX-DEC 2495 | -10/Exiles | Learned location of Zion (-6) 2559 | -10/Exiles | Visited The Gauntlet 2712 | -10/Exiles | Discovered new exit (range 11) 2729 | -10/Exiles | Left Exiles lab with Flying Fortress v7 2729 | -10/Exiles | Entered Mines 2729 | -9/Mines | Accompanied by 3 allies 2770 | -9/Mines | Met a Derelict bent on vengeance 2827 | -9/Mines | Discovered new exit (range 10) 2842 | -9/Mines | Entered Materials 2842 | -8/Materials | Accompanied by 3 allies 2842 | -8/Materials | Evolved 4 slots: Propulsion x2, Utility x2 3244 | -8/Materials | Repaired Grenade Launcher 3306 | -8/Materials | Discovered new exit (range 16) 3343 | -8/Materials | Entered Factory 3343 | -7/Factory | Evolved 2 slots: Utility x2 3566 | -7/Factory | Identified exit to DSF 3638 | -7/Factory | Discovered new exit (range 15) 3741 | -7/Factory | Build established: Hacker-Mutant 3984 | -7/Factory | Entered another Factory area 3984 | -6/Factory | Evolved 2 slots: Propulsion x1, Utility x1 4082 | -6/Factory | Central database locked down 4352 | -6/Factory | Build established: Hacker-Ninja 4507 | -6/Factory | Identified exit to Factory 4676 | -6/Factory | Discovered new exit (range 7) 4704 | -6/Factory | Entered another Factory area 4704 | -5/Factory | Evolved 2 slots: Power x1, Propulsion x1 4747 | -5/Factory | Repaired Imp. Medium Armor Plating 4844 | -5/Factory | Discovered new exit (range 10) 4921 | -5/Factory | Identified exit to Upper Caves 4986 | -5/Factory | Identified exit to Factory 5092 | -5/Factory | Entered another Factory area 5092 | -4/Factory | Evolved 2 slots: Propulsion x1, Utility x1 5203 | -4/Factory | Discovered new exit (range 4) 5227 | -4/Factory | Identified exit to Research 5261 | -4/Factory | Entered Research 5261 | -3/Research | Evolved 2 slots: Propulsion x1, Utility x1 5299 | -3/Research | Identified exit to Research 5381 | -3/Research | Build established: Hacker-Sprinter 5572 | -3/Research | Identified exit to DSF 5578 | -3/Research | Central database locked down 5616 | -3/Research | Identified exit to DSF 5917 | -3/Research | Spotted B-86 Titan 6004 | -3/Research | Cargo convoy interrupted 6005 | -3/Research | Spotted Executioner 6021 | -3/Research | Spotted B-86 Titan 6064 | -3/Research | System corruption reached 10% 6107 | -3/Research | Lost 4 parts (2p2n) 6137 | -3/Research | Entered another Research area 6137 | -2/Research | Evolved 2 slots: Propulsion x1, Utility x1 6279 | -2/Research | Found Prototype Launcher 6279 | -2/Research | Identified Gui. Micro-nuke Launcher 6335 | -2/Research | Build established: Hacker-Mutant 6361 | -2/Research | Lost 5 parts (1p3u1w) 6367 | -2/Research | Spotted B-90 Cyclops 6387 | -2/Research | Search patrols dispatched 6400 | -2/Research | Core integrity fell below 50% 6430 | -2/Research | Lost 4 parts (4n) 6504 | -2/Research | Core integrity fell below 20% 6513 | -2/Research | Destroyed by G-73 Enforcer with Phase Gun Last Messages --------------- 06443_ Imp. Hacking Suite destroyed. 06453_ C-30 ARC bursts open, deploying its payload. 06453_ B-74 Champion unfolds itself. 06453_ G-73 Enforcer unfolds itself. 06499_ Slammed into Drone. 06499_ Adv. System Shield destroyed. 06499_ System corrupted by crushing effect (+4). 06499_ Drone sends a signal. 06500_ Slammed into G-73 Enforcer. 06501_ Imp. System Shield destroyed. 06501_ System corrupted by crushing effect (+2). 06502_ Slammed into G-73 Enforcer. 06505_ Slammed into Y-72 Warden. 06506_ Penetrated by Slug. 06506_ Slammed into Y-72 Warden. 06508_ Slammed into G-73 Enforcer. 06508_ Destabilizing: System corrupted (+1). 06509_ Slammed into G-73 Enforcer. 06512_ Penetrated by Slug. 06512_ Slammed into G-73 Enforcer. Map ----- +----------------------------------------------------+ | | | | | | | | | | | | | | | | | | | | | | | | | ?????????????###########?????????????????????????? | | ?????????????# #?????????????????????????? | | ?????????????# #?????????????????????????? | | ?????????????# #?????????????????????????? | | ?????????????# #??????????????##?????????? | | ?????????????##+##/#######???????????? ?????????? | | ??????????????# ggbgggg#???????????? #?????????? | | ?????????????#####/#####Y#???????????# ########??? | | ?????????????# # #??????????? # ] #??? | | ?????????????# ! # #???????????# # #??? | | ?????????????# # #???????????# #? ???? | | ?????????????# * !# #???????????# #? ???? | | ?????????????########### #####+####### #?? ????? | | ???????????????????????#g@ b g #?? ????? | | ???????????????????????# g ####+###### | | ???????????????????????# | | ???????????????????????# g | | ???????????????????????# | | ???????????????????????# #####+####### | | ???????????????????????# #?? ????# | | ???????????????????????# # ??# | | ????????????C??????????# # ! ! #?# | | ???????????????????????# # #?# ##### | | ???????????????????????# # #?# #???# | | ???????????????????????# # #?# #???# | | ???????????????????????# # #?# #????+ | | ????????????????????????%# +? #????? | | ????????????????????????Y################## #????? | | ???????????????????????? ?????????????????? #????? | | ???????????????????????? ?????????????????? ????? | | ???????????????????????? ?????????????????? ????? | | ???????????????????????? ??????????????????? ????? | | ???????????????????????? ????????????????????????? | | ?????????????????????????????????????????????????? | | ?????????????????????????????????????????????????? | | ?????????????????????????????????????????????????? | | ?????????????????????????????????????????????????? | | ?????????????????????????????????????????????????? | +----------------------------------------------------+ Best States ------------- Heat Dissipation 49 Energy Generation 34 Energy Capacity 390 Matter Stores 300 Matter Capacity 300 Sight Range 20 Robot Scan Range 14 Terrain Scan Range 16 Terrain Scan Density 10 ECM Strength 3 Jamming Range 16 Cloak Strength 3 Armor Coverage 225 Utility Shielding 66 Evasion (%) 70 Targeting Accuracy 8 Recoil Reduction 2 Offensive Hacking 22 Defensive Hacking 26 Item Schematics ----------------- Imp. Flight Unit | -8/Materials | Scanalyzed Robot Schematics ------------------ None Fabricated ------------ Nothing Repaired ---------- Grenade Launcher | 36% | -8/Materials Imp. Medium Armor Plating | 40% | -5/Factory Studied --------- Mic. Nuclear Core | -7/Factory | Hacked Xenon Bombardment Thruster | -7/Factory | Hacked Powered Hammer | -6/Factory | Hacked Alien Tech Used ----------------- None Achievements -------------- Can't Catch Me No Signal Prolific Hacker Respectable Loadout Challenges ------------ None Game ------ Seed TeslaMiningRedirector Manual? 0 Play Time 02:52:03 Cumulative 41.2 hours Start 2026.01.08 @ 00:33:24 End 2026.01.08 @ 04:45:11 Sessions 3 Manual Loads 0 Difficulty Rogue Special Mode None Game No. 51 Rogue 51 Adventurer 0 Explorer 0 Win Type - Total 0 Types 0/0/0/0/0/0/0/0/0/0 Lore% 34 Gallery% 35 Achievement% 26 Wizard Run 0 Options --------- Layout 0 ASCII 0 Keyboard 0 Movement Arrows Keybinds 1 Fullscreen 1 Font 18/X11 Map View 76x50 Zoom Use 0% Tactical HUD 1 Map Filters NONE Filters NONE Steam 1 RUN: 84d37ed8-08f2-4376-b9d7-891d46a3a840